lending/lending_fUSD_20260209
["ID","MTS","AMOUNT","RATE_DAILY","PERIOD"]
[404889215,1770652156521,-438.49595488,0.00017889,2]
[404889216,1770652158904,2414.18101782,0.00017066,2]
[404889217,1770652158925,3145.90700594,0.00017066,2]
[404889218,1770652158947,3145.90700594,0.00017066,2]
[404889219,1770652158971,3145.90700594,0.00017066,2]
[404889220,1770652158992,3145.90700594,0.00017066,2]
[404889221,1770652159015,365.03095842,0.00017066,2]
[404889224,1770652199368,2780.87604752,0.000174,2]
[404889225,1770652199398,3145.90700594,0.000174,2]
[404889226,1770652199424,3145.90700594,0.000174,2]
[404889227,1770652203866,500.0,0.00017,2]
[404889229,1770652228072,163.51,0.00016942,2]
[404889240,1770652231915,-297.0,0.000174,2]
[404889241,1770652231926,-398.5,0.000177,2]
[404889242,1770652231938,-211.58217695,0.000177,2]
[404889243,1770652231948,-300.0,0.00017888,2]
[404889244,1770652231958,-1200.0,0.00017888,2]
[404889245,1770652231968,-61.50404512,0.00017889,2]
[404889246,1770652231978,-500.0,0.00017889,2]
[404889247,1770652231988,-500.0,0.00017889,2]
[404889248,1770652231998,-500.0,0.00017889,2]
[404889249,1770652232008,-500.0,0.00017889,2]
[404889250,1770652232018,-500.0,0.00017889,2]
[404889251,1770652232027,-500.0,0.00017889,2]
[404889252,1770652232037,-500.0,0.00017889,2]
[404889253,1770652232047,-200.0,0.00017889,2]
[404889254,1770652232055,-1473.71377793,0.00017898,2]
[404889255,1770652232066,-1037.25,0.00017898,2]
[404889256,1770652232077,-481.42181777,0.00017898,2]
[404889257,1770652232085,-41692.2611706,0.00017898,2]
[404889258,1770652232094,-1200.0,0.00017899,2]
[404889259,1770652232109,-153.60773974,0.00017899,2]
[404889260,1770652232118,-2970.99149073,0.00017899,2]
[404889261,1770652232127,-2970.99149066,0.00017899,2]
[404889262,1770652232137,-153.60773969,0.00017899,2]
[404889263,1770652232146,-2970.99149066,0.00017899,2]
[404889264,1770652232156,-153.60773969,0.00017899,2]
[404889265,1770652232166,-2970.99149066,0.00017899,2]
[404889266,1770652232176,-153.60773969,0.00017899,2]
[404889267,1770652232185,-2970.99149066,0.00017899,2]
[404889268,1770652232195,-2970.99149066,0.000179,2]
[404889269,1770652232205,-153.60773969,0.000179,2]
[404889270,1770652232215,-2970.99149066,0.000179,2]
[404889271,1770652232225,-153.60773969,0.000179,2]
[404889272,1770652232235,-2970.99149066,0.000179,2]
[404889273,1770652232245,-153.60773969,0.000179,2]
[404889275,1770652232254,-2970.99149066,0.000179,2]
[404889277,1770652232264,-1362.341,0.000179,2]
[404889281,1770652232274,-3431.67744249,0.000179,2]
[404889284,1770652232283,-177.98017706,0.000179,2]
[404889287,1770652232292,-42188.91022343,0.000179,2]
[404889291,1770652232302,-500.0,0.000179,2]
[404889295,1770652232311,-153.60773969,0.000179,2]
[404889299,1770652232323,-183.5103701,0.000179,2]
[404889303,1770652232334,-13658.41525657,0.000179,2]
[404889306,1770652232343,-2970.99149066,0.000179,2]
[404889309,1770652232353,-21256.11505555,0.000179,2]
[404889312,1770652232362,-2436.55069835,0.000179,2]
[404889315,1770652232373,-150.0,0.00017973,2]
[404889318,1770652232383,-150.0,0.00017973,2]
[404889320,1770652232393,-509.14733964,0.00017982,2]
[404889321,1770652232403,-1005.12,0.00017989,2]
[404889322,1770652232412,-169.20577922,0.0001799,2]
[404889323,1770652232422,-169.20577922,0.0001799,2]
[404889324,1770652232432,-169.20577922,0.0001799,2]
[404889325,1770652232442,-151.0,0.00017997,2]
[404889326,1770652232452,-344.78542289,0.00017998,2]
[404889327,1770652232462,-500.0,0.00017998,2]
[404889328,1770652232472,-381.71449547,0.00017998,2]
[404889329,1770652232482,-500.0,0.00017998,2]
[404889330,1770652232492,-500.0,0.00017998,2]
[404889331,1770652232502,-500.0,0.00017998,2]
[404889332,1770652232512,-500.0,0.00017999,2]
[404889333,1770652232522,-150.27588129,0.00017999,2]
[404889334,1770652232531,-1115.57176627,0.00017999,5]
[404889335,1770652232541,-1115.57176628,0.00017999,5]
[404889336,1770652232552,-178.74851016,0.00017999,5]
[404889337,1770652232562,-1028.85504012,0.00017999,5]
[404889338,1770652232572,-1028.85504012,0.00017999,5]
[404889339,1770652232582,-1028.85504011,0.00017999,5]
[404889340,1770652232592,-500.0,0.00017999,2]
[404889341,1770652232602,-500.0,0.00017999,2]
[404889342,1770652232613,-500.0,0.00017999,2]
[404889343,1770652232623,-500.0,0.00017999,2]
[404889344,1770652232633,-500.0,0.00017999,2]
[404889345,1770652232642,-500.0,0.00017999,2]
[404889346,1770652232655,-500.0,0.00017999,2]
[404889347,1770652232665,-500.0,0.00017999,2]
[404889348,1770652232676,-500.0,0.00017999,2]
[404889349,1770652232686,-500.0,0.00017999,2]
[404889350,1770652232697,-500.0,0.00017999,2]
[404889351,1770652232708,-500.0,0.00017999,2]
[404889352,1770652232719,-500.0,0.00017999,2]
[404889353,1770652232729,-500.0,0.00017999,2]
[404889354,1770652232740,-500.0,0.00017999,2]
[404889355,1770652232751,-476.40670515,0.00017999,2]
[404889356,1770652232761,-500.0,0.00017999,2]
[404889357,1770652232772,-500.0,0.00017999,2]
[404889358,1770652232781,-178.81113549,0.00017999,2]
[404889359,1770652232792,-500.0,0.00017999,2]
[404889360,1770652232802,-500.0,0.00017999,2]
[404889361,1770652232814,-500.0,0.00017999,2]
[404889362,1770652232824,-500.0,0.00017999,2]
[404889363,1770652232834,-237.36469144,0.00017999,2]
[404889364,1770652232845,-500.0,0.00017999,2]
[404889365,1770652232855,-500.0,0.00017999,2]
[404889366,1770652232866,-500.0,0.00017999,2]
[404889367,1770652232878,-500.0,0.00017999,2]
[404889368,1770652232889,-500.0,0.00017999,2]
[404889369,1770652232900,-490.83125822,0.00017999,2]
[404889370,1770652232912,-500.0,0.00017999,2]
[404889371,1770652233148,-500.0,0.00017999,2]
[404889372,1770652233158,-500.0,0.00017999,2]
[404889373,1770652233167,-500.0,0.00017999,2]
[404889374,1770652233177,-500.0,0.00017999,2]
[404889375,1770652233186,-500.0,0.00017999,2]
[404889376,1770652233196,-500.0,0.00017999,2]
[404889377,1770652233205,-500.0,0.00017999,2]
[404889378,1770652233214,-412.37612486,0.00017999,2]
[404889379,1770652233225,-500.0,0.00017999,2]
[404889380,1770652233235,-503.80787471,0.00017999,2]
[404889381,1770652233244,-500.0,0.00017999,2]
[404889382,1770652233253,-500.0,0.00017999,2]
[404889383,1770652233263,-500.0,0.00017999,2]
[404889384,1770652233273,-500.0,0.00017999,2]
[404889385,1770652233283,-636.83,0.00017999,2]
[404889386,1770652233293,-500.0,0.00017999,2]
[404889387,1770652233302,-636.83,0.00017999,2]
[404889388,1770652233311,-410.52532876,0.00017999,2]
[404889389,1770652233323,-636.83,0.00017999,2]
[404889390,1770652233334,-636.83,0.00017999,2]
[404889391,1770652233344,-636.83,0.00017999,2]
[404889392,1770652233356,-636.83,0.00017999,2]
[404889393,1770652233367,-636.83,0.00017999,2]
[404889394,1770652233377,-636.83,0.00017999,2]
[404889395,1770652233387,-636.83,0.00017999,2]
[404889396,1770652233397,-636.83,0.00017999,2]
[404889397,1770652233407,-636.83,0.00017999,2]
[404889398,1770652233416,-636.83,0.00017999,2]
[404889399,1770652233427,-636.83,0.00017999,2]
[404889400,1770652233437,-636.83,0.00017999,2]
[404889401,1770652233447,-636.83,0.00017999,2]
[404889402,1770652233457,-636.83,0.00017999,2]
[404889403,1770652233467,-636.83,0.00017999,2]
[404889404,1770652233477,-636.83,0.00017999,2]
[404889405,1770652233487,-636.83,0.00017999,2]
[404889406,1770652233497,-636.83,0.00017999,2]
[404889407,1770652233507,-636.83,0.00017999,2]
[404889408,1770652233517,-636.83,0.00017999,2]
[404889409,1770652233527,-636.83,0.00017999,2]
[404889410,1770652233536,-637.06593414,0.00017999,2]
[404889411,1770652233545,-524.50136006,0.00017999,2]
[404889412,1770652233555,-500.0,0.00017999,2]
[404889413,1770652233565,-500.0,0.00017999,2]
[404889414,1770652233575,-500.0,0.00017999,2]
[404889415,1770652233584,-621.97513782,0.00017999,2]
[404889416,1770652233594,-500.0,0.00017999,2]
[404889417,1770652233603,-500.0,0.00017999,2]
[404889418,1770652233613,-167.38350037,0.00017999,2]
[404889419,1770652233622,-500.0,0.00017999,2]
[404889420,1770652233632,-500.0,0.00017999,2]
[404889421,1770652233641,-500.0,0.00017999,2]
[404889422,1770652233651,-500.0,0.00017999,2]
[404889423,1770652233661,-500.0,0.00017999,2]
[404889424,1770652233670,-500.0,0.00017999,2]
[404889425,1770652233680,-500.0,0.00017999,2]
[404889426,1770652233689,-519.49,0.00017999,2]
[404889427,1770652233698,-642.18068599,0.00017999,2]
[404889428,1770652233708,-666.0,0.00017999,2]
[404889429,1770652233718,-1316.12626123,0.00017999,5]
[404889430,1770652233727,-1316.12626123,0.00017999,5]
[404889431,1770652233737,-300.0,0.00017999,2]
[404889432,1770652233746,-500.0,0.00017999,2]
[404889433,1770652233756,-500.0,0.00017999,2]
[404889434,1770652233766,-500.0,0.00017999,2]
[404889435,1770652233776,-482.12517298,0.00017999,2]
[404889436,1770652233786,-300.0,0.00017999,2]
[404889437,1770652233796,-300.0,0.00017999,2]
[404889438,1770652233805,-496.93460441,0.00017999,2]
[404889439,1770652233815,-500.0,0.00017999,2]
[404889440,1770652233825,-196.55812169,0.00017999,2]
[404889441,1770652233834,-500.0,0.00017999,2]
[404889442,1770652233843,-236.88659851,0.00017999,2]
[404889443,1770652233853,-500.0,0.00017999,2]
[404889444,1770652233863,-218.02001505,0.00017999,2]
[404889445,1770652233872,-552.65947591,0.00017999,2]
[404889446,1770652233881,-645.53339192,0.00017999,2]
[404889447,1770652233891,-500.0,0.00017999,2]
[404889448,1770652233900,-500.0,0.00017999,2]
[404889449,1770652233909,-500.0,0.00017999,2]
[404889450,1770652233918,-500.0,0.00017999,2]
[404889451,1770652233937,-356.67133066,0.00017999,2]
[404889452,1770652233948,-586.55335149,0.00017999,2]
[404889453,1770652233958,-500.0,0.00017999,2]
[404889454,1770652233968,-500.0,0.00017999,2]
[404889455,1770652233978,-500.0,0.00017999,2]
[404889456,1770652233988,-500.0,0.00017999,2]
[404889457,1770652233997,-500.0,0.00017999,2]
[404889458,1770652234006,-531.38144443,0.00017999,2]
[404889459,1770652234017,-500.0,0.00017999,2]
[404889460,1770652234027,-500.0,0.00017999,2]
[404889461,1770652234036,-500.0,0.00017999,2]
[404889462,1770652234046,-500.0,0.00017999,2]
[404889463,1770652234055,-500.0,0.00017999,2]
[404889464,1770652234065,-509.31183288,0.00017999,2]
[404889465,1770652234074,-531.38144443,0.00017999,2]
[404889466,1770652234085,-500.0,0.00017999,2]
[404889467,1770652234095,-500.0,0.00017999,2]
[404889468,1770652234106,-500.0,0.00017999,2]
[404889469,1770652234116,-500.0,0.00017999,2]
[404889470,1770652234125,-500.0,0.00017999,2]
[404889471,1770652234136,-500.0,0.00017999,2]
[404889472,1770652234146,-531.38144443,0.00017999,2]
[404889473,1770652234156,-262.1318607,0.00017999,2]
[404889474,1770652234166,-500.0,0.00017999,2]
[404889475,1770652234175,-500.0,0.00017999,2]
[404889476,1770652234184,-500.0,0.00017999,2]
[404889477,1770652234195,-514.01103701,0.00017999,2]
[404889478,1770652234205,-531.38144443,0.00017999,2]
[404889479,1770652234216,-500.0,0.00017999,2]
[404889480,1770652234225,-500.0,0.00017999,2]
[404889481,1770652234236,-500.0,0.00017999,2]
[404889482,1770652234245,-500.0,0.00017999,2]
[404889483,1770652234255,-531.38144443,0.00017999,2]
[404889484,1770652234265,-500.0,0.00017999,2]
[404889485,1770652234276,-531.38144443,0.00017999,2]
[404889486,1770652234287,-500.0,0.00017999,2]
[404889487,1770652234298,-500.0,0.00017999,2]
[404889488,1770652234309,-500.0,0.00017999,2]
[404889489,1770652234322,-500.0,0.00017999,2]
[404889490,1770652234332,-500.0,0.00017999,2]
[404889491,1770652234343,-500.0,0.00017999,2]
[404889492,1770652234353,-531.38144443,0.00017999,2]
[404889493,1770652234366,-500.0,0.00017999,2]
[404889494,1770652234377,-335.35029604,0.00017999,2]
[404889495,1770652234388,-500.0,0.00017999,2]
[404889496,1770652234399,-531.38144443,0.00017999,2]
[404889497,1770652234410,-500.0,0.00017999,2]
[404889498,1770652234419,-531.38144443,0.00017999,2]
[404889499,1770652234429,-500.0,0.00017999,2]
[404889500,1770652234440,-500.0,0.00017999,2]
[404889501,1770652234451,-531.38144443,0.00017999,2]
[404889502,1770652234460,-500.0,0.00017999,2]
[404889503,1770652234470,-531.38144443,0.00017999,2]
[404889504,1770652234479,-500.0,0.00017999,2]
[404889505,1770652234489,-500.0,0.00017999,2]
[404889506,1770652234500,-531.38144443,0.00017999,2]
[404889507,1770652234510,-500.0,0.00017999,2]
[404889508,1770652234519,-531.38144443,0.00017999,2]
[404889509,1770652234529,-500.0,0.00017999,2]
[404889510,1770652234539,-531.38144443,0.00017999,2]
[404889511,1770652234551,-500.0,0.00017999,2]
[404889512,1770652234563,-531.38144443,0.00017999,2]
[404889513,1770652234572,-500.0,0.00017999,2]
[404889514,1770652234582,-500.0,0.00017999,2]
[404889515,1770652234593,-531.38144443,0.00017999,2]
[404889516,1770652234604,-531.38144443,0.00017999,2]
[404889517,1770652234614,-531.38144443,0.00017999,2]
[404889518,1770652234624,-531.38144443,0.00017999,2]
[404889519,1770652234634,-531.38144443,0.00017999,2]
[404889520,1770652234643,-500.0,0.00017999,2]
[404889521,1770652234652,-531.38144443,0.00017999,2]
[404889522,1770652234662,-531.38144443,0.00017999,2]
[404889523,1770652234672,-500.0,0.00017999,2]
[404889524,1770652234682,-500.0,0.00017999,2]
[404889525,1770652234692,-531.38144443,0.00017999,2]
[404889526,1770652234702,-500.0,0.00017999,2]
[404889527,1770652234711,-500.0,0.00017999,2]
[404889528,1770652234721,-531.38144443,0.00017999,2]
[404889529,1770652234731,-500.0,0.00017999,2]
[404889530,1770652234740,-500.0,0.00017999,2]
[404889531,1770652234750,-531.38144443,0.00017999,2]
[404889532,1770652234760,-500.0,0.00017999,2]
[404889533,1770652234770,-531.38144443,0.00017999,2]
[404889534,1770652234779,-500.0,0.00017999,2]
[404889535,1770652234789,-500.0,0.00017999,2]
[404889536,1770652234798,-531.38144443,0.00017999,2]
[404889537,1770652234807,-500.0,0.00017999,2]
[404889538,1770652234816,-531.38144443,0.00017999,2]
[404889539,1770652234827,-603.8240891,0.00017999,2]
[404889540,1770652234836,-500.0,0.00017999,2]
[404889541,1770652234845,-531.38144443,0.00017999,2]
[404889542,1770652234855,-531.38144443,0.00017999,2]
[404889543,1770652234864,-531.38144443,0.00017999,2]
[404889544,1770652234873,-500.0,0.00017999,2]
[404889545,1770652234883,-500.0,0.00017999,2]
[404889546,1770652234893,-531.38144443,0.00017999,2]
[404889547,1770652234903,-531.38144443,0.00017999,2]
[404889548,1770652234913,-531.38144443,0.00017999,2]
[404889549,1770652234923,-531.38144443,0.00017999,2]
[404889550,1770652234932,-531.38144443,0.00017999,2]
[404889551,1770652234942,-531.38144443,0.00017999,2]
[404889552,1770652234952,-531.38144443,0.00017999,2]
[404889553,1770652234961,-531.38144443,0.00017999,2]
[404889554,1770652234972,-531.38144443,0.00017999,2]
[404889555,1770652234982,-531.38144443,0.00017999,2]
[404889556,1770652234992,-531.38144443,0.00017999,2]
[404889557,1770652235002,-531.38144443,0.00017999,2]
[404889558,1770652235012,-531.38144443,0.00017999,2]
[404889559,1770652235022,-531.38144443,0.00017999,2]
[404889560,1770652235032,-531.38144443,0.00017999,2]
[404889561,1770652235042,-531.38144443,0.00017999,2]
[404889562,1770652235052,-531.38144443,0.00017999,2]
[404889563,1770652235061,-500.0,0.00017999,2]
[404889564,1770652235072,-500.0,0.00017999,2]
[404889565,1770652235082,-500.0,0.00017999,2]
[404889566,1770652235092,-500.0,0.00017999,2]
[404889567,1770652235102,-500.0,0.00017999,2]
[404889568,1770652235113,-325.50916859,0.00017999,2]
[404889569,1770652235122,-500.0,0.00017999,2]
[404889570,1770652235131,-500.0,0.00017999,2]
[404889571,1770652235140,-500.0,0.00017999,2]
[404889572,1770652235150,-500.0,0.00017999,2]
[404889573,1770652235160,-2136.8582739,0.00017999,2]
[404889574,1770652235169,-500.0,0.00017999,2]
[404889575,1770652235179,-2136.8582739,0.00017999,2]
[404889576,1770652235188,-500.0,0.00017999,2]
[404889577,1770652235198,-500.0,0.00017999,2]
[404889578,1770652235207,-2136.8582739,0.00017999,2]
[404889579,1770652235218,-2136.8582739,0.00017999,2]
[404889580,1770652235227,-2136.8582739,0.00017999,2]
[404889581,1770652235237,-500.0,0.00017999,2]
[404889582,1770652235248,-2136.8582739,0.00017999,2]
[404889583,1770652235258,-500.0,0.00017999,2]
[404889584,1770652235268,-500.0,0.00017999,2]
[404889585,1770652235277,-2136.8582739,0.00017999,2]
[404889586,1770652235288,-500.0,0.00017999,2]
[404889587,1770652235297,-500.0,0.00017999,2]
[404889588,1770652235307,-2136.8582739,0.00017999,2]
[404889589,1770652235318,-500.0,0.00017999,2]
[404889590,1770652235332,-2136.8582739,0.00017999,2]
[404889591,1770652235341,-500.0,0.00017999,2]
[404889592,1770652235352,-2136.8582739,0.00017999,2]
[404889593,1770652235363,-500.0,0.00017999,2]
[404889594,1770652235376,-2136.8582739,0.00017999,2]
[404889595,1770652235387,-500.0,0.00017999,2]
[404889596,1770652235402,-500.0,0.00017999,2]
[404889597,1770652235413,-500.0,0.00017999,2]
[404889598,1770652235423,-500.0,0.00017999,2]
[404889599,1770652235432,-500.0,0.00017999,2]
[404889600,1770652235442,-500.0,0.00017999,2]
[404889601,1770652235451,-500.0,0.00017999,2]
[404889602,1770652235461,-500.0,0.00017999,2]
[404889603,1770652235470,-500.0,0.00017999,2]
[404889604,1770652235480,-500.0,0.00017999,2]
[404889605,1770652235490,-500.0,0.00017999,2]
[404889606,1770652235499,-500.0,0.00017999,2]
[404889607,1770652235509,-500.0,0.00017999,2]
[404889608,1770652235520,-250.0,0.00017999,2]
[404889609,1770652235530,-500.0,0.00017999,2]
[404889610,1770652235540,-2136.8582739,0.00017999,2]
[404889611,1770652235552,-2136.8582739,0.00017999,2]
[404889612,1770652235561,-2136.8582739,0.00017999,2]
[404889613,1770652235572,-2136.8582739,0.00017999,2]
[404889614,1770652235582,-2136.8582739,0.00017999,2]
[404889615,1770652235592,-2136.8582739,0.00017999,2]
[404889616,1770652235654,-2136.8582739,0.00017999,2]
[404889617,1770652235664,-2136.8582739,0.00017999,2]
[404889618,1770652235673,-2136.8582739,0.00017999,2]
[404889619,1770652235683,-2136.8582739,0.00017999,2]
[404889620,1770652235692,-500.0,0.00017999,2]
[404889621,1770652235702,-500.0,0.00017999,2]
[404889622,1770652235712,-2139.18094593,0.00017999,2]
[404889623,1770652235721,-2139.18094593,0.00017999,2]
[404889624,1770652235730,-2139.18094593,0.00017999,2]
[404889625,1770652235740,-2139.18094593,0.00017999,2]
[404889626,1770652235749,-2139.18094593,0.00017999,2]
[404889627,1770652235758,-2139.18094593,0.00017999,2]
[404889628,1770652235768,-2139.18094593,0.00017999,2]
[404889629,1770652235777,-2139.18094593,0.00017999,2]
[404889630,1770652235786,-2139.18094593,0.00017999,2]
[404889631,1770652235795,-2139.18094593,0.00017999,2]
[404889632,1770652235804,-2139.18094593,0.00017999,2]
[404889633,1770652235814,-2139.18094593,0.00017999,2]
[404889634,1770652235823,-2139.18094593,0.00017999,2]
[404889635,1770652235832,-2139.18094593,0.00017999,2]
[404889636,1770652235841,-2139.18094593,0.00017999,2]
[404889637,1770652235851,-2139.18094593,0.00017999,2]
[404889638,1770652235860,-2139.18094593,0.00017999,2]
[404889639,1770652235869,-2139.18094593,0.00017999,2]
[404889640,1770652235878,-2139.18094593,0.00017999,2]
[404889641,1770652235887,-2139.18094593,0.00017999,2]
[404889642,1770652235896,-2139.18094593,0.00017999,2]
[404889643,1770652235905,-2139.18094593,0.00017999,2]
[404889644,1770652235914,-2139.18094593,0.00017999,2]
[404889645,1770652235924,-500.0,0.00017999,2]
[404889646,1770652235932,-500.0,0.00017999,2]
[404889647,1770652235941,-500.0,0.00017999,2]
[404889648,1770652235951,-519.48256256,0.00017999,2]
[404889649,1770652235959,-27436.40618976,0.00018,2]
[404889650,1770652236064,-18393.459692,0.00018,2]
[404889651,1770652236076,-31933.02018254,0.00018,2]
[404889652,1770652236088,-893.05564984,0.00018,2]
[404889653,1770652236100,-178038.78098703,0.00018,2]
[404889654,1770652236112,-1085.84254698,0.00018,2]
[404889655,1770652236125,-19496.56012286,0.00018,2]
[404889656,1770652236137,-364.719,0.00018,2]
[404889657,1770652236147,-656.09435565,0.00018,2]
[404889658,1770652236157,-215906.9485669,0.00018,2]
[404889662,1770652238048,-3781.98708148,0.000179,2]
[404889663,1770652238058,-254265.06561692,0.00018,2]
[404889664,1770652238070,-74299.13123632,0.00018,2]
[404889665,1770652238103,-643.66622513,0.00018,2]
[404889666,1770652238116,-1914679.84973878,0.00018,2]
[404889667,1770652238126,-7505.7239404,0.00018,2]
[404889668,1770652238135,-109592.64721999,0.00018,2]
[404889669,1770652238145,-11510082.36024833,0.00018,2]
[404889670,1770652238159,-88580.4388779,0.00018,2]
[404889671,1770652238170,-1159.41324796,0.00018,2]
[404889711,1770652240149,-2357.27069278,0.00018,2]
[404889712,1770652240160,-3797.753,0.00018,2]
[404889713,1770652240171,-1421322.95785393,0.00018,2]
[404889714,1770652240182,-2097.33418306,0.00018,2]
[404889715,1770652240204,-7294.02521592,0.00018,2]
[404889716,1770652240478,-68765.0,0.00018,2]
[404889726,1770652244284,-2821.21757297,0.000179,2]
[404889727,1770652244293,-40327.45776771,0.00018,2]
[404889729,1770652244327,-1375.92,0.00018,2]
[404889730,1770652245618,-1374.32545218,0.00018,2]
[404889733,1770652246298,-346.84265593,0.00018,2]
[404889734,1770652246473,-470.51550901,0.00018,2]
[404889735,1770652246484,-482.04198878,0.00018,2]
[404889736,1770652246495,-5420.0000004,0.00018,2]
[404889737,1770652246507,-392.82036721,0.00018,2]
[404889738,1770652246519,-1547.93118714,0.00018,2]
[404889739,1770652246531,-1382.0,0.00018,2]
[404889744,1770652266741,2969.0,0.00035616,30]
[404889745,1770652292850,250.0,0.00015,2]
[404889747,1770652293939,300.0,0.00017,2]
[404889751,1770652350239,151.0,0.00014634,2]
[404889753,1770652359488,4324.33202198,0.00035616,30]
[404889754,1770652377153,2046.04,0.00035616,30]
[404889755,1770652415481,300.0,0.000354,120]
[404889756,1770652428523,299.99,0.00034649,30]
[404889757,1770652498836,4999.99,0.00034649,30]
[404889758,1770652502324,150.99,0.00034649,30]
[404889759,1770652507494,1000.0,0.00035616,30]
[404889782,1770652870111,-369.0,0.0001721,2]
[404889789,1770652995242,183.14,0.00017006,3]
[404889791,1770653038972,-1483.42,0.0001721,2]
[404889792,1770653038995,-500.0,0.0001721,2]
[404889793,1770653039018,-348.00314474,0.0001721,2]
[404889794,1770653039044,-600.0,0.0001721,2]
[404889795,1770653039067,-296.0,0.0001721,2]
[404889796,1770653039089,-487.10430916,0.00017278,2]
[404889797,1770653039112,-703.61,0.000173,2]
[404889798,1770653039133,-271.18,0.00017309,2]
[404889799,1770653039155,-300.0,0.00017359,2]
[404889800,1770653039176,-426.0,0.00017359,2]
[404889801,1770653039198,-3240.0,0.0001736,2]
[404889802,1770653039220,-500.0,0.00017454,2]
[404889803,1770653039242,-1200.0,0.00017679,2]
[404889804,1770653039264,-152.0,0.00017703,2]
[404889805,1770653039286,-10246.86,0.00017705,2]
[404889806,1770653039307,-150.0,0.00017725,2]
[404889807,1770653039330,-150.0,0.00017725,2]
[404889808,1770653039353,-500.0,0.00017725,2]
[404889809,1770653039375,-500.0,0.00017725,2]
[404889810,1770653039398,-150.0,0.00017725,2]
[404889811,1770653039421,-500.0,0.00017725,2]
[404889812,1770653039444,-150.0,0.00017725,2]
[404889813,1770653039467,-150.41052194,0.00017725,2]
[404889814,1770653039489,-150.0,0.0001778,2]
[404889815,1770653039511,-500.0,0.0001778,2]
[404889816,1770653039533,-352.96267049,0.0001778,2]
[404889817,1770653039559,-500.0,0.0001778,2]
[404889818,1770653039585,-200.0,0.0001778,2]
[404889819,1770653039609,-550.0,0.00017834,2]
[404889820,1770653039634,-150.0,0.00017835,2]
[404889821,1770653039656,-500.0,0.00017835,2]
[404889822,1770653039681,-500.0,0.00017835,2]
[404889823,1770653039704,-215.63831267,0.00017889,2]
[404889824,1770653039727,-278.85968916,0.00017889,2]
[404889825,1770653039749,-171.99283888,0.00017889,2]
[404889826,1770653039771,-1429.50939888,0.000179,2]
[404889827,1770653039793,-304.14183242,0.000179,2]
[404889828,1770653039817,-1178.43317384,0.000179,2]
[404889829,1770653039839,-176.75618032,0.000179,3]
[404889830,1770653039862,-487.88711364,0.000179,2]
[404889831,1770653039884,-3438.21459566,0.000179,2]
[404889832,1770653040080,-251.82659475,0.00017973,2]
[404889833,1770653040108,-921.36,0.00017989,2]
[404889834,1770653040131,-500.0,0.00017989,2]
[404889835,1770653040153,-200.0,0.00017989,2]
[404889836,1770653040176,-500.0,0.00017989,2]
[404889837,1770653040199,-500.0,0.00017989,2]
[404889838,1770653040223,-500.0,0.00017989,2]
[404889839,1770653040246,-500.0,0.00017989,2]
[404889840,1770653040269,-500.0,0.00017989,2]
[404889841,1770653040292,-500.0,0.00017989,2]
[404889842,1770653040315,-500.0,0.00017989,2]
[404889843,1770653040338,-500.0,0.00017989,2]
[404889844,1770653040360,-500.0,0.00017989,2]
[404889845,1770653040383,-500.0,0.00017989,2]
[404889846,1770653040407,-151.0,0.00017989,2]
[404889847,1770653040432,-251.35621976,0.00017989,2]
[404889848,1770653040454,-200.0,0.00017989,2]
[404889849,1770653040478,-500.0,0.00017989,2]
[404889850,1770653040500,-500.0,0.00017989,2]
[404889851,1770653040524,-500.0,0.00017989,2]